[Event "Titled Tuesday Blitz September 13 Early 2022"]
[White "Ginzburg, Yakov"]
[Black "Cardoso Cardoso, Jose Gabriel"]
[WhiteFideId "4157176"]
[BlackFideId "4430492"]
[WhiteElo "2265"]
[BlackElo "2485"]
[Result "0-1"]
[Round "08"]
[TimeControl "180+1"]
[Date "2022.09.13"]
[WhiteClock "0:00:04"]
[BlackClock "0:00:09"]

1. d4 {[%clk 0:02:59]}  Nf6 {[%clk 0:02:55]} 2. Nf3 {[%clk 0:02:58]}  e6 {[%clk 0:02:46]} 3. g3 {[%clk 0:02:58]}  d5 {[%clk 0:02:43]} 4. Bg2 {[%clk 0:02:57]}  Be7 {[%clk 0:02:44]} 5. O-O {[%clk 0:02:57]}  O-O {[%clk 0:02:44]} 6. c4 {[%clk 0:02:57]}  c6 {[%clk 0:02:33]} 7. b3 {[%clk 0:02:53]}  b6 {[%clk 0:02:26]} 8. Bb2 {[%clk 0:02:53]}  Ba6 {[%clk 0:02:20]} 9. Nbd2 {[%clk 0:02:52]}  Nbd7 {[%clk 0:02:18]} 10. Qc2 {[%clk 0:02:51]}  Rc8 {[%clk 0:02:16]} 11. e4 {[%clk 0:02:50]}  c5 {[%clk 0:02:14]} 12. exd5 {[%clk 0:02:36]}  exd5 {[%clk 0:02:12]} 13. dxc5 {[%clk 0:02:35]}  Nxc5 {[%clk 0:02:09]} 14. Ng5 {[%clk 0:02:21]}  d4 {[%clk 0:01:44]} 15. Rad1 {[%clk 0:02:07]}  h6 {[%clk 0:01:35]} 16. Nge4 {[%clk 0:02:07]}  Nfxe4 {[%clk 0:01:33]} 17. Nxe4 {[%clk 0:02:05]}  Ne6 {[%clk 0:01:16]} 18. Bh3 {[%clk 0:01:56]}  f5 {[%clk 0:01:11]} 19. Nc3 {[%clk 0:01:22]}  Ng5 {[%clk 0:01:03]} 20. Bxf5 {[%clk 0:01:15]}  Bb7 {[%clk 0:00:58]} 21. f4 {[%clk 0:00:26]}  Bc5 {[%clk 0:00:49]} 22. b4 {[%clk 0:00:18]}  d3+ {[%clk 0:00:38]} 23. bxc5 {[%clk 0:00:17]}  Qd4+ {[%clk 0:00:35]} 24. Qf2 {[%clk 0:00:13]}  Rxf5 {[%clk 0:00:35]} 25. c6 {[%clk 0:00:10]}  Nh3+ {[%clk 0:00:32]} 26. Kg2 {[%clk 0:00:11]}  Nxf2 {[%clk 0:00:13]} 27. cxb7 {[%clk 0:00:10]}  Rb8 {[%clk 0:00:12]} 28. Rxf2 {[%clk 0:00:10]}  Rxb7 {[%clk 0:00:11]} 29. Rfd2 {[%clk 0:00:06]}  Rd7 {[%clk 0:00:11]} 30. Nd5 {[%clk 0:00:06]}  Qxc4 {[%clk 0:00:10]} 31. Ne3 {[%clk 0:00:06]}  Qe4+ {[%clk 0:00:10]} 32. Kf2 {[%clk 0:00:06]}  Rb5 {[%clk 0:00:10]} 33. Bc3 {[%clk 0:00:06]}  Rc5 {[%clk 0:00:09]} 34. Be5 {[%clk 0:00:06]}  Rxe5 {[%clk 0:00:09]} 35. fxe5 {[%clk 0:00:07]}  Rf7+ {[%clk 0:00:10]} 36. Kg1 {[%clk 0:00:04]}  Qxe3+ {[%clk 0:00:10]} 37. Kg2 {[%clk 0:00:05]}  Qe4+ {[%clk 0:00:10]} 38. Kg1 {[%clk 0:00:05]}  Rf3 {[%clk 0:00:10]} 39. Kg2 {[%clk 0:00:05]}  Re3+ {[%clk 0:00:09]} 40. Kh3 {[%clk 0:00:06]}  Qf5+ {[%clk 0:00:09]} 41. Kh4 {[%clk 0:00:05]}  Re4+ {[%clk 0:00:09]} 42. g4 {[%clk 0:00:04]}  Qxg4# {[%clk 0:00:09]} 0-1


[Site "https://www.chess.com"]

[Event "Titled Tuesday Blitz September 13 Early 2022"]
[White "Gokerkan, Cem Kaan"]
[Black "Sarana, Alexey"]
[WhiteFideId "6336760"]
[BlackFideId "24133795"]
[WhiteElo "2364"]
[BlackElo "2689"]
[Result "1-0"]
[Round "08"]
[TimeControl "180+1"]
[Date "2022.09.13"]
[WhiteClock "0:00:26"]
[BlackClock "0:00:40"]

1. e4 {[%clk 0:03:00]}  c5 {[%clk 0:03:00]} 2. Nf3 {[%clk 0:03:00]}  d6 {[%clk 0:03:01]} 3. d4 {[%clk 0:02:59]}  Nf6 {[%clk 0:03:02]} 4. Nc3 {[%clk 0:02:59]}  cxd4 {[%clk 0:03:02]} 5. Nxd4 {[%clk 0:03:00]}  Nbd7 {[%clk 0:03:02]} 6. g4 {[%clk 0:02:58]}  Nc5 {[%clk 0:02:59]} 7. f3 {[%clk 0:02:57]}  h6 {[%clk 0:02:59]} 8. Be3 {[%clk 0:02:56]}  e6 {[%clk 0:02:56]} 9. h4 {[%clk 0:02:53]}  a6 {[%clk 0:02:56]} 10. Rg1 {[%clk 0:02:51]}  Qc7 {[%clk 0:02:57]} 11. g5 {[%clk 0:02:50]}  hxg5 {[%clk 0:02:56]} 12. hxg5 {[%clk 0:02:51]}  Nfd7 {[%clk 0:02:55]} 13. g6 {[%clk 0:02:48]}  Ne5 {[%clk 0:02:54]} 14. gxf7+ {[%clk 0:02:48]}  Qxf7 {[%clk 0:02:53]} 15. f4 {[%clk 0:02:46]}  Ng6 {[%clk 0:02:46]} 16. Qg4 {[%clk 0:02:25]}  Nh4 {[%clk 0:02:09]} 17. Qg3 {[%clk 0:01:59]}  Bd7 {[%clk 0:01:56]} 18. O-O-O {[%clk 0:01:58]}  O-O-O {[%clk 0:01:56]} 19. Bc4 {[%clk 0:01:53]}  Rh5 {[%clk 0:01:49]} 20. f5 {[%clk 0:01:45]}  Be7 {[%clk 0:01:24]} 21. fxe6 {[%clk 0:01:37]}  Nxe6 {[%clk 0:01:25]} 22. Rgf1 {[%clk 0:01:33]}  Bf6 {[%clk 0:01:17]} 23. Nf5 {[%clk 0:01:30]}  Nxf5 {[%clk 0:00:56]} 24. exf5 {[%clk 0:01:31]}  Be5 {[%clk 0:00:56]} 25. Qg4 {[%clk 0:00:48]}  Rxf5 {[%clk 0:00:52]} 26. Rxf5 {[%clk 0:00:47]}  Qe8 {[%clk 0:00:49]} 27. Rxe5 {[%clk 0:00:36]}  dxe5 {[%clk 0:00:49]} 28. Ne4 {[%clk 0:00:36]}  Kb8 {[%clk 0:00:39]} 29. Rxd7 {[%clk 0:00:31]}  Rxd7 {[%clk 0:00:39]} 30. Qxe6 {[%clk 0:00:27]}  Qd8 {[%clk 0:00:39]} 31. Qxe5+ {[%clk 0:00:27]}  Ka8 {[%clk 0:00:40]} 32. Bd3 {[%clk 0:00:26]}  Qc8 {[%clk 0:00:39]} 33. Qc5 {[%clk 0:00:25]}  Qxc5 {[%clk 0:00:39]} 34. Nxc5 {[%clk 0:00:26]}  Rd5 {[%clk 0:00:40]} 35. Ne4 {[%clk 0:00:26]}  Rf5 {[%clk 0:00:39]} 36. Kd2 {[%clk 0:00:26]}  Rf3 {[%clk 0:00:40]} 37. Ke2 {[%clk 0:00:26]}  Rh3 {[%clk 0:00:40]} 38. Nf2 {[%clk 0:00:26]}  Rh2 {[%clk 0:00:40]} 39. Kf3 {[%clk 0:00:26]}  Rh8 {[%clk 0:00:40]} 40. a4 {[%clk 0:00:26]}  Rf8+ {[%clk 0:00:40]} 41. Kg4 {[%clk 0:00:26]}  Re8 {[%clk 0:00:41]} 42. Bd4 {[%clk 0:00:25]}  Re7 {[%clk 0:00:39]} 43. b3 {[%clk 0:00:23]}  Rd7 {[%clk 0:00:39]} 44. Bb2 {[%clk 0:00:23]}  Rf7 {[%clk 0:00:38]} 45. Ne4 {[%clk 0:00:23]}  Re7 {[%clk 0:00:38]} 46. Kg5 {[%clk 0:00:24]}  Rf7 {[%clk 0:00:38]} 47. Kg6 {[%clk 0:00:24]}  Rf3 {[%clk 0:00:39]} 48. Kxg7 {[%clk 0:00:24]}  Rh3 {[%clk 0:00:39]} 49. Kf6 {[%clk 0:00:24]}  Rh1 {[%clk 0:00:40]} 50. Ke5 {[%clk 0:00:25]}  Rh5+ {[%clk 0:00:41]} 51. Kd4 {[%clk 0:00:25]}  Rh4 {[%clk 0:00:41]} 52. Kc3 {[%clk 0:00:26]}  Rh3 {[%clk 0:00:41]} 53. Ba3 {[%clk 0:00:26]}  Rf3 {[%clk 0:00:41]} 54. Bc5 {[%clk 0:00:26]}  Rh3 {[%clk 0:00:41]} 55. a5 {[%clk 0:00:26]}  Rf3 {[%clk 0:00:41]} 56. Bb6 {[%clk 0:00:27]}  Rh3 {[%clk 0:00:42]} 57. Kd4 {[%clk 0:00:28]}  Rh4 {[%clk 0:00:42]} 58. Ke3 {[%clk 0:00:28]}  Rh3+ {[%clk 0:00:42]} 59. Kd4 {[%clk 0:00:29]}  Rh4 {[%clk 0:00:43]} 60. Kc3 {[%clk 0:00:29]}  Rh3 {[%clk 0:00:43]} 61. Kb2 {[%clk 0:00:30]}  Rh4 {[%clk 0:00:43]} 62. Nc5 {[%clk 0:00:30]}  Kb8 {[%clk 0:00:42]} 63. Be4 {[%clk 0:00:30]}  Rh2 {[%clk 0:00:43]} 64. Nxb7 {[%clk 0:00:26]}  Re2 {[%clk 0:00:40]} 65. Nc5 {[%clk 0:00:26]} 1-0


[Site "https://www.chess.com"]

[Event "Titled Tuesday Blitz September 13 Early 2022"]
[White "Goltsev, Dmitry"]
[Black "Salem, A.R. Saleh"]
[WhiteFideId "24176710"]
[BlackFideId "9301348"]
[WhiteElo "2257"]
[BlackElo "2628"]
[Result "0-1"]
[Round "08"]
[TimeControl "180+1"]
[Date "2022.09.13"]
[WhiteClock "0:02:08"]
[BlackClock "0:01:33"]

1. e4 {[%clk 0:03:00]}  c5 {[%clk 0:03:00]} 2. Nf3 {[%clk 0:03:01]}  d6 {[%clk 0:03:01]} 3. d4 {[%clk 0:03:01]}  cxd4 {[%clk 0:03:01]} 4. Nxd4 {[%clk 0:03:02]}  Nf6 {[%clk 0:03:02]} 5. Nc3 {[%clk 0:03:03]}  a6 {[%clk 0:03:03]} 6. Be2 {[%clk 0:03:03]}  e5 {[%clk 0:03:03]} 7. Nb3 {[%clk 0:03:04]}  Be7 {[%clk 0:03:04]} 8. O-O {[%clk 0:03:04]}  O-O {[%clk 0:03:04]} 9. f4 {[%clk 0:03:05]}  b5 {[%clk 0:02:59]} 10. a3 {[%clk 0:03:05]}  Bb7 {[%clk 0:02:59]} 11. Bf3 {[%clk 0:03:05]}  Nbd7 {[%clk 0:02:59]} 12. Be3 {[%clk 0:03:04]}  Rc8 {[%clk 0:03:00]} 13. Qd2 {[%clk 0:03:04]}  Nb6 {[%clk 0:02:59]} 14. Na5 {[%clk 0:03:01]}  Nc4 {[%clk 0:02:47]} 15. Nxc4 {[%clk 0:02:58]}  Rxc4 {[%clk 0:02:48]} 16. Qd3 {[%clk 0:02:57]}  Qa8 {[%clk 0:02:45]} 17. fxe5 {[%clk 0:02:44]}  dxe5 {[%clk 0:02:45]} 18. Nd5 {[%clk 0:02:44]}  Bxd5 {[%clk 0:02:44]} 19. exd5 {[%clk 0:02:45]}  e4 {[%clk 0:02:45]} 20. Bxe4 {[%clk 0:02:42]}  Rxe4 {[%clk 0:02:44]} 21. d6 {[%clk 0:02:39]}  Bd8 {[%clk 0:02:44]} 22. Bc5 {[%clk 0:02:38]}  Rg4 {[%clk 0:02:36]} 23. Qe2 {[%clk 0:02:32]}  Re8 {[%clk 0:02:29]} 24. Qf2 {[%clk 0:02:27]}  Re5 {[%clk 0:02:25]} 25. Bd4 {[%clk 0:02:25]}  Rf5 {[%clk 0:01:47]} 26. Qe2 {[%clk 0:02:21]}  Rxf1+ {[%clk 0:01:40]} 27. Rxf1 {[%clk 0:02:20]}  Rxd4 {[%clk 0:01:40]} 28. Re1 {[%clk 0:02:14]}  Bb6 {[%clk 0:01:37]} 29. Kh1 {[%clk 0:02:10]}  Rxd6 {[%clk 0:01:34]} 30. Qe7 {[%clk 0:02:08]}  Rd2 {[%clk 0:01:33]} 0-1


[Site "https://www.chess.com"]

[Event "Titled Tuesday Blitz September 13 Early 2022"]
[White "Goryachkina, Aleksandra"]
[Black "Rustemov, Alexander"]
[WhiteFideId "4147103"]
[BlackFideId "4119002"]
[WhiteElo "2426"]
[BlackElo "2854"]
[Result "1/2-1/2"]
[Round "08"]
[TimeControl "180+1"]
[Date "2022.09.13"]
[WhiteClock "0:00:03"]
[BlackClock "0:00:05"]

1. e4 {[%clk 0:03:00]}  e6 {[%clk 0:03:00]} 2. d4 {[%clk 0:02:59]}  d5 {[%clk 0:03:00]} 3. Nc3 {[%clk 0:02:59]}  Bb4 {[%clk 0:03:00]} 4. exd5 {[%clk 0:02:59]}  exd5 {[%clk 0:02:59]} 5. Bd3 {[%clk 0:02:59]}  Nc6 {[%clk 0:03:00]} 6. Ne2 {[%clk 0:02:59]}  Nge7 {[%clk 0:02:59]} 7. O-O {[%clk 0:02:58]}  Bf5 {[%clk 0:03:00]} 8. Bg5 {[%clk 0:02:33]}  f6 {[%clk 0:02:56]} 9. Be3 {[%clk 0:02:29]}  Qd7 {[%clk 0:02:54]} 10. a3 {[%clk 0:02:26]}  Bxc3 {[%clk 0:02:54]} 11. Nxc3 {[%clk 0:02:26]}  Bxd3 {[%clk 0:02:53]} 12. Qxd3 {[%clk 0:02:25]}  O-O-O {[%clk 0:02:47]} 13. Na4 {[%clk 0:02:11]}  Qf5 {[%clk 0:02:39]} 14. Qb3 {[%clk 0:02:05]}  b6 {[%clk 0:02:34]} 15. Rac1 {[%clk 0:01:49]}  Na5 {[%clk 0:02:34]} 16. Qb5 {[%clk 0:01:47]}  Qd7 {[%clk 0:02:26]} 17. Qa6+ {[%clk 0:01:44]}  Kb8 {[%clk 0:02:25]} 18. Nc3 {[%clk 0:01:44]}  Qc8 {[%clk 0:02:11]} 19. Qd3 {[%clk 0:01:39]}  Qf5 {[%clk 0:02:09]} 20. Qa6 {[%clk 0:01:38]}  c6 {[%clk 0:01:56]} 21. b3 {[%clk 0:01:32]}  Rhe8 {[%clk 0:01:54]} 22. Na4 {[%clk 0:01:27]}  Nc8 {[%clk 0:01:44]} 23. Nb2 {[%clk 0:01:06]}  g5 {[%clk 0:01:39]} 24. b4 {[%clk 0:01:01]}  Nb7 {[%clk 0:01:36]} 25. c4 {[%clk 0:01:01]}  dxc4 {[%clk 0:01:35]} 26. Qxc4 {[%clk 0:01:01]}  Ne7 {[%clk 0:01:32]} 27. a4 {[%clk 0:00:57]}  Qd5 {[%clk 0:01:26]} 28. Qc2 {[%clk 0:00:52]}  Qf5 {[%clk 0:01:11]} 29. Qxf5 {[%clk 0:00:41]}  Nxf5 {[%clk 0:01:11]} 30. Rxc6 {[%clk 0:00:41]}  Rd6 {[%clk 0:00:56]} 31. b5 {[%clk 0:00:33]}  Na5 {[%clk 0:00:51]} 32. Rxd6 {[%clk 0:00:30]}  Nxd6 {[%clk 0:00:52]} 33. Nd3 {[%clk 0:00:24]}  Ndc4 {[%clk 0:00:47]} 34. Re1 {[%clk 0:00:24]}  Kc8 {[%clk 0:00:42]} 35. Nb4 {[%clk 0:00:22]}  Kd7 {[%clk 0:00:42]} 36. Kf1 {[%clk 0:00:18]}  Nb3 {[%clk 0:00:37]} 37. d5 {[%clk 0:00:11]}  Re4 {[%clk 0:00:28]} 38. Nc6 {[%clk 0:00:10]}  Nxe3+ {[%clk 0:00:13]} 39. Rxe3 {[%clk 0:00:07]}  Rxe3 {[%clk 0:00:09]} 40. fxe3 {[%clk 0:00:08]}  Kd6 {[%clk 0:00:08]} 41. Nxa7 {[%clk 0:00:07]}  Kxd5 {[%clk 0:00:05]} 42. Ke2 {[%clk 0:00:05]}  Nc5 {[%clk 0:00:05]} 43. Nc6 {[%clk 0:00:04]}  Nxa4 {[%clk 0:00:05]} 44. Kd3 {[%clk 0:00:03]}  Nc5+ {[%clk 0:00:04]} 45. Kc3 {[%clk 0:00:02]}  Ne4+ {[%clk 0:00:04]} 46. Kd3 {[%clk 0:00:02]}  Nd6 {[%clk 0:00:04]} 47. Nd4 {[%clk 0:00:02]}  Kc5 {[%clk 0:00:05]} 48. Ne6+ {[%clk 0:00:02]}  Kxb5 {[%clk 0:00:05]} 49. Kd4 {[%clk 0:00:02]}  Kc6 {[%clk 0:00:04]} 50. Nf8 {[%clk 0:00:03]}  b5 {[%clk 0:00:05]} 51. Nxh7 {[%clk 0:00:03]}  f5 {[%clk 0:00:05]} 52. Nxg5 {[%clk 0:00:03]}  b4 {[%clk 0:00:05]} 53. h4 {[%clk 0:00:03]}  Kb5 {[%clk 0:00:04]} 54. h5 {[%clk 0:00:04]}  Ne8 {[%clk 0:00:04]} 55. h6 {[%clk 0:00:04]}  Nf6 {[%clk 0:00:02]} 56. Kd3 {[%clk 0:00:04]}  Ka4 {[%clk 0:00:01]} 57. Kc2 {[%clk 0:00:04]}  Ka3 {[%clk 0:00:01]} 58. Kb1 {[%clk 0:00:05]}  Kb3 {[%clk 0:00:01]} 59. h7 {[%clk 0:00:05]}  Nxh7 {[%clk 0:00:01]} 60. Nxh7 {[%clk 0:00:05]}  Kc3 {[%clk 0:00:02]} 61. Nf6 {[%clk 0:00:02]}  Kd3 {[%clk 0:00:03]} 62. Nd5 {[%clk 0:00:03]}  Ke4 {[%clk 0:00:03]} 63. Nxb4 {[%clk 0:00:02]}  Kxe3 {[%clk 0:00:04]} 64. Nd5+ {[%clk 0:00:03]}  Kf2 {[%clk 0:00:04]} 65. Nf4 {[%clk 0:00:03]}  Kg3 {[%clk 0:00:04]} 66. Ne6 {[%clk 0:00:03]}  Kxg2 {[%clk 0:00:04]} 67. Kc2 {[%clk 0:00:03]}  Kf3 {[%clk 0:00:05]} 68. Kd3 {[%clk 0:00:03]}  Kg4 {[%clk 0:00:05]} 69. Ke3 {[%clk 0:00:02]}  f4+ {[%clk 0:00:05]} 70. Nxf4 {[%clk 0:00:03]} 1/2-1/2


[Site "https://www.chess.com"]

[Event "Titled Tuesday Blitz September 13 Early 2022"]
[White "Grandelius, Nils"]
[Black "Koustav, Chatterjee"]
[WhiteFideId "1710400"]
[BlackFideId "25073060"]
[WhiteElo "2915"]
[BlackElo "2748"]
[Result "1/2-1/2"]
[Round "08"]
[TimeControl "180+1"]
[Date "2022.09.13"]
[WhiteClock "0:00:03"]
[BlackClock "0:00:07"]

1. d4 {[%clk 0:03:00]}  Nf6 {[%clk 0:02:59]} 2. c4 {[%clk 0:03:01]}  e6 {[%clk 0:03:00]} 3. Nc3 {[%clk 0:03:01]}  Bb4 {[%clk 0:03:00]} 4. Qc2 {[%clk 0:03:01]}  O-O {[%clk 0:02:58]} 5. Bg5 {[%clk 0:03:02]}  h6 {[%clk 0:02:53]} 6. Bh4 {[%clk 0:03:01]}  c5 {[%clk 0:02:50]} 7. dxc5 {[%clk 0:03:01]}  Bxc5 {[%clk 0:02:46]} 8. e3 {[%clk 0:02:52]}  b6 {[%clk 0:02:44]} 9. Nf3 {[%clk 0:02:46]}  Bb7 {[%clk 0:02:44]} 10. Be2 {[%clk 0:02:45]}  Be7 {[%clk 0:02:35]} 11. O-O {[%clk 0:02:45]}  a6 {[%clk 0:02:33]} 12. Rfd1 {[%clk 0:02:44]}  d6 {[%clk 0:02:24]} 13. Rd2 {[%clk 0:02:37]}  Nbd7 {[%clk 0:02:23]} 14. Bg3 {[%clk 0:02:37]}  Nc5 {[%clk 0:02:11]} 15. Bh4 {[%clk 0:02:20]}  Rc8 {[%clk 0:01:57]} 16. Rad1 {[%clk 0:02:09]}  Nfe4 {[%clk 0:01:56]} 17. Bxe7 {[%clk 0:02:06]}  Qxe7 {[%clk 0:01:57]} 18. Nxe4 {[%clk 0:02:06]}  Nxe4 {[%clk 0:01:46]} 19. Rd4 {[%clk 0:02:04]}  d5 {[%clk 0:01:45]} 20. Ne5 {[%clk 0:00:53]}  b5 {[%clk 0:01:32]} 21. b3 {[%clk 0:00:44]}  Qc7 {[%clk 0:01:14]} 22. f4 {[%clk 0:00:42]}  Nd6 {[%clk 0:00:57]} 23. Qb2 {[%clk 0:00:21]}  Nf5 {[%clk 0:00:49]} 24. R4d3 {[%clk 0:00:21]}  bxc4 {[%clk 0:00:29]} 25. bxc4 {[%clk 0:00:21]}  Rb8 {[%clk 0:00:26]} 26. Rc3 {[%clk 0:00:16]}  Rfc8 {[%clk 0:00:19]} 27. Qc2 {[%clk 0:00:13]}  Qe7 {[%clk 0:00:12]} 28. cxd5 {[%clk 0:00:12]}  Nxe3 {[%clk 0:00:11]} 29. d6 {[%clk 0:00:08]}  Qd8 {[%clk 0:00:09]} 30. Rxc8 {[%clk 0:00:04]}  Rxc8 {[%clk 0:00:09]} 31. Qb3 {[%clk 0:00:04]}  Nxd1 {[%clk 0:00:09]} 32. Qxb7 {[%clk 0:00:05]}  Nc3 {[%clk 0:00:07]} 33. Qxf7+ {[%clk 0:00:04]}  Kh8 {[%clk 0:00:06]} 34. Ng6+ {[%clk 0:00:05]}  Kh7 {[%clk 0:00:06]} 35. Bd3 {[%clk 0:00:05]}  Qb6+ {[%clk 0:00:06]} 36. Kf1 {[%clk 0:00:02]}  Qe3 {[%clk 0:00:06]} 37. Nf8+ {[%clk 0:00:01]}  Kh8 {[%clk 0:00:06]} 38. Ng6+ {[%clk 0:00:02]}  Kh7 {[%clk 0:00:07]} 39. Ne5+ {[%clk 0:00:02]}  Kh8 {[%clk 0:00:07]} 40. Ng6+ {[%clk 0:00:03]}  Kh7 {[%clk 0:00:07]} 1/2-1/2


[Site "https://www.chess.com"]

[Event "Titled Tuesday Blitz September 13 Early 2022"]
[White "Gurel, Ediz"]
[Black "Bachmann, Axel"]
[WhiteFideId "44507356"]
[BlackFideId "3700488"]
[WhiteElo "2955"]
[BlackElo "2868"]
[Result "1-0"]
[Round "08"]
[TimeControl "180+1"]
[Date "2022.09.13"]
[WhiteClock "0:00:08"]
[BlackClock "0:00:06"]

1. e4 {[%clk 0:03:00]}  Nc6 {[%clk 0:02:38]} 2. d4 {[%clk 0:03:00]}  d6 {[%clk 0:02:37]} 3. Nf3 {[%clk 0:03:00]}  Nf6 {[%clk 0:02:38]} 4. Nc3 {[%clk 0:02:59]}  g6 {[%clk 0:02:35]} 5. Bc4 {[%clk 0:02:48]}  Bg7 {[%clk 0:02:34]} 6. O-O {[%clk 0:02:46]}  Bg4 {[%clk 0:02:25]} 7. Be3 {[%clk 0:02:41]}  O-O {[%clk 0:02:17]} 8. h3 {[%clk 0:02:35]}  Bxf3 {[%clk 0:02:16]} 9. Qxf3 {[%clk 0:02:36]}  e5 {[%clk 0:02:17]} 10. dxe5 {[%clk 0:02:28]}  Nxe5 {[%clk 0:02:18]} 11. Qe2 {[%clk 0:02:28]}  Nxc4 {[%clk 0:02:07]} 12. Qxc4 {[%clk 0:02:29]}  Re8 {[%clk 0:02:07]} 13. Rad1 {[%clk 0:02:28]}  Re6 {[%clk 0:02:04]} 14. Rfe1 {[%clk 0:02:20]}  Qd7 {[%clk 0:01:57]} 15. f3 {[%clk 0:02:04]}  Rae8 {[%clk 0:01:38]} 16. Bf2 {[%clk 0:02:03]}  a6 {[%clk 0:01:35]} 17. a4 {[%clk 0:01:53]}  Qc6 {[%clk 0:01:33]} 18. Qxc6 {[%clk 0:01:32]}  bxc6 {[%clk 0:01:34]} 19. Ne2 {[%clk 0:01:29]}  c5 {[%clk 0:01:30]} 20. Nf4 {[%clk 0:01:27]}  R6e7 {[%clk 0:01:30]} 21. Bh4 {[%clk 0:01:28]}  Rd7 {[%clk 0:01:11]} 22. b3 {[%clk 0:01:17]}  h6 {[%clk 0:01:10]} 23. Bf2 {[%clk 0:01:16]}  Rde7 {[%clk 0:01:05]} 24. Nd3 {[%clk 0:01:13]}  Nd7 {[%clk 0:01:00]} 25. Nf4 {[%clk 0:00:58]}  Nf6 {[%clk 0:00:57]} 26. Kf1 {[%clk 0:00:56]}  g5 {[%clk 0:00:55]} 27. Nd3 {[%clk 0:00:56]}  Nd7 {[%clk 0:00:56]} 28. h4 {[%clk 0:00:56]}  Bc3 {[%clk 0:00:49]} 29. Re2 {[%clk 0:00:55]}  Rb8 {[%clk 0:00:44]} 30. Be3 {[%clk 0:00:49]}  f6 {[%clk 0:00:44]} 31. Kf2 {[%clk 0:00:46]}  Nb6 {[%clk 0:00:31]} 32. hxg5 {[%clk 0:00:32]}  hxg5 {[%clk 0:00:32]} 33. Nc1 {[%clk 0:00:20]}  c4 {[%clk 0:00:30]} 34. Na2 {[%clk 0:00:19]}  Be5 {[%clk 0:00:29]} 35. Nb4 {[%clk 0:00:19]}  Ra8 {[%clk 0:00:16]} 36. Nc6 {[%clk 0:00:19]}  Rh7 {[%clk 0:00:15]} 37. a5 {[%clk 0:00:15]}  Nc8 {[%clk 0:00:12]} 38. bxc4 {[%clk 0:00:14]}  Ne7 {[%clk 0:00:12]} 39. Nxe7+ {[%clk 0:00:13]}  Rxe7 {[%clk 0:00:13]} 40. Rb1 {[%clk 0:00:13]}  Rh7 {[%clk 0:00:07]} 41. c5 {[%clk 0:00:12]}  Kf7 {[%clk 0:00:06]} 42. cxd6 {[%clk 0:00:12]}  Bxd6 {[%clk 0:00:07]} 43. Rb7 {[%clk 0:00:11]}  Ke6 {[%clk 0:00:07]} 44. Rd2 {[%clk 0:00:11]}  Rh1 {[%clk 0:00:06]} 45. c4 {[%clk 0:00:10]}  Ra1 {[%clk 0:00:07]} 46. c5 {[%clk 0:00:10]}  Be5 {[%clk 0:00:07]} 47. g3 {[%clk 0:00:07]}  Rxa5 {[%clk 0:00:06]} 48. f4 {[%clk 0:00:08]}  gxf4 {[%clk 0:00:06]} 49. gxf4 {[%clk 0:00:08]}  Bc3 {[%clk 0:00:07]} 50. Rc2 {[%clk 0:00:09]}  Ra3 {[%clk 0:00:05]} 51. Rxc7 {[%clk 0:00:09]}  Rh8 {[%clk 0:00:05]} 52. f5+ {[%clk 0:00:08]}  Ke5 {[%clk 0:00:06]} 53. Re7# {[%clk 0:00:08]} 1-0


[Site "https://www.chess.com"]

[Event "Titled Tuesday Blitz September 13 Early 2022"]
[White "Halkias, Stelios"]
[Black "Zierk, Steven"]
[WhiteFideId "4201809"]
[BlackFideId "2034255"]
[WhiteElo "2453"]
[BlackElo "2494"]
[Result "0-1"]
[Round "08"]
[TimeControl "180+1"]
[Date "2022.09.13"]
[WhiteClock "0:00:14"]
[BlackClock "0:00:19"]

1. Nf3 {[%clk 0:03:00]}  Nf6 {[%clk 0:02:59]} 2. c4 {[%clk 0:02:59]}  g6 {[%clk 0:02:59]} 3. Nc3 {[%clk 0:03:00]}  Bg7 {[%clk 0:03:00]} 4. e4 {[%clk 0:03:00]}  d6 {[%clk 0:03:00]} 5. d4 {[%clk 0:03:00]}  O-O {[%clk 0:03:01]} 6. Be2 {[%clk 0:03:01]}  Nbd7 {[%clk 0:03:02]} 7. Be3 {[%clk 0:03:00]}  e5 {[%clk 0:02:57]} 8. O-O {[%clk 0:02:59]}  Ng4 {[%clk 0:02:53]} 9. Bg5 {[%clk 0:02:58]}  f6 {[%clk 0:02:53]} 10. Bc1 {[%clk 0:02:57]}  f5 {[%clk 0:02:49]} 11. exf5 {[%clk 0:02:44]}  gxf5 {[%clk 0:02:50]} 12. dxe5 {[%clk 0:02:33]}  dxe5 {[%clk 0:02:50]} 13. Ng5 {[%clk 0:02:29]}  Nc5 {[%clk 0:02:37]} 14. Qxd8 {[%clk 0:02:01]}  Rxd8 {[%clk 0:02:36]} 15. b4 {[%clk 0:01:53]}  e4 {[%clk 0:02:23]} 16. bxc5 {[%clk 0:01:35]}  Bxc3 {[%clk 0:02:23]} 17. Rb1 {[%clk 0:01:35]}  Nf6 {[%clk 0:02:00]} 18. Rb3 {[%clk 0:01:23]}  Be5 {[%clk 0:01:56]} 19. Nh3 {[%clk 0:01:18]}  b6 {[%clk 0:01:49]} 20. c6 {[%clk 0:01:10]}  Be6 {[%clk 0:01:45]} 21. Nf4 {[%clk 0:01:01]}  Bf7 {[%clk 0:01:44]} 22. Rg3+ {[%clk 0:01:00]}  Bg6 {[%clk 0:01:29]} 23. h4 {[%clk 0:00:35]}  Bxf4 {[%clk 0:00:55]} 24. Bxf4 {[%clk 0:00:33]}  Kf7 {[%clk 0:00:54]} 25. Bxc7 {[%clk 0:00:30]}  Rdc8 {[%clk 0:00:54]} 26. Be5 {[%clk 0:00:29]}  Rxc6 {[%clk 0:00:53]} 27. h5 {[%clk 0:00:24]}  Bxh5 {[%clk 0:00:50]} 28. Bxh5+ {[%clk 0:00:21]}  Nxh5 {[%clk 0:00:51]} 29. Rg5 {[%clk 0:00:21]}  Nf6 {[%clk 0:00:48]} 30. Rxf5 {[%clk 0:00:22]}  Kg6 {[%clk 0:00:40]} 31. Rf4 {[%clk 0:00:21]}  Re8 {[%clk 0:00:39]} 32. Bxf6 {[%clk 0:00:19]}  Rxf6 {[%clk 0:00:40]} 33. Rg4+ {[%clk 0:00:19]}  Kf7 {[%clk 0:00:36]} 34. Rd1 {[%clk 0:00:18]}  Re7 {[%clk 0:00:35]} 35. Rg3 {[%clk 0:00:18]}  Rc6 {[%clk 0:00:33]} 36. Rd4 {[%clk 0:00:18]}  Kf6 {[%clk 0:00:30]} 37. Re3 {[%clk 0:00:19]}  Rce6 {[%clk 0:00:31]} 38. g3 {[%clk 0:00:19]}  Kf5 {[%clk 0:00:28]} 39. Kg2 {[%clk 0:00:19]}  Rc7 {[%clk 0:00:28]} 40. Rd5+ {[%clk 0:00:19]}  Re5 {[%clk 0:00:26]} 41. Rd4 {[%clk 0:00:20]}  h5 {[%clk 0:00:26]} 42. Kh3 {[%clk 0:00:19]}  Rce7 {[%clk 0:00:23]} 43. Kh4 {[%clk 0:00:19]}  Ra5 {[%clk 0:00:23]} 44. Rd5+ {[%clk 0:00:19]}  Rxd5 {[%clk 0:00:23]} 45. cxd5 {[%clk 0:00:19]}  Rd7 {[%clk 0:00:23]} 46. d6 {[%clk 0:00:18]}  Rxd6 {[%clk 0:00:22]} 47. Kxh5 {[%clk 0:00:18]}  Rd2 {[%clk 0:00:23]} 48. g4+ {[%clk 0:00:18]}  Kf4 {[%clk 0:00:23]} 49. g5 {[%clk 0:00:17]}  Rxf2 {[%clk 0:00:23]} 50. Rh3 {[%clk 0:00:17]}  e3 {[%clk 0:00:22]} 51. g6 {[%clk 0:00:17]}  e2 {[%clk 0:00:21]} 52. Rh4+ {[%clk 0:00:16]}  Kf5 {[%clk 0:00:21]} 53. g7 {[%clk 0:00:14]}  Rg2 {[%clk 0:00:19]} 0-1


[Site "https://www.chess.com"]